[Event "Early-Titled-Tuesday-Blitz-October-24-2023"]
[Site "Chess.com"]
[Date "2023.10.24"]
[Round "2"]
[White "vishwa_vijeta"]
[Black "McCarthyStone"]
[Result "1/2-1/2"]
[WhiteElo "2529"]
[BlackElo "2313"]
[TimeControl "180+1"]
[EndTime "8:17:39 PDT"]
[Termination "Game drawn by repetition"]

1. e4 {[%clk 0:02:58]} 1... e5 {[%clk 0:02:58.9]} 2. Nf3 {[%clk 0:02:57.6]} 2...
d6 {[%clk 0:02:59.5]} 3. d4 {[%clk 0:02:54.9]} 3... exd4 {[%clk 0:03:00.4]} 4.
Nxd4 {[%clk 0:02:54.6]} 4... Nf6 {[%clk 0:03:00]} 5. Nc3 {[%clk 0:02:54.4]} 5...
g6 {[%clk 0:02:59.9]} 6. Be3 {[%clk 0:02:51.6]} 6... Bg7 {[%clk 0:03:00.2]} 7.
f3 {[%clk 0:02:51.7]} 7... O-O {[%clk 0:03:00.4]} 8. Qd2 {[%clk 0:02:51.5]} 8...
Nc6 {[%clk 0:02:59.1]} 9. Bc4 {[%clk 0:02:50.3]} 9... Nxd4 {[%clk 0:02:54.1]}
10. Bxd4 {[%clk 0:02:47.9]} 10... a6 {[%clk 0:02:55]} 11. a4 {[%clk 0:02:41.3]}
11... Re8 {[%clk 0:02:50.9]} 12. O-O {[%clk 0:02:31]} 12... b6 {[%clk
0:02:45.1]} 13. Bd5 {[%clk 0:01:48.1]} 13... Rb8 {[%clk 0:02:31.6]} 14. Rad1
{[%clk 0:01:39]} 14... Bb7 {[%clk 0:02:22.6]} 15. Bxb7 {[%clk 0:01:33.9]} 15...
Rxb7 {[%clk 0:02:23.5]} 16. Rfe1 {[%clk 0:01:18]} 16... b5 {[%clk 0:02:20.4]}
17. axb5 {[%clk 0:01:15.4]} 17... axb5 {[%clk 0:02:21.3]} 18. b3 {[%clk
0:01:11]} 18... Rb8 {[%clk 0:02:16.8]} 19. Be3 {[%clk 0:01:09.8]} 19... Qe7
{[%clk 0:02:13.5]} 20. Bg5 {[%clk 0:01:08.4]} 20... Qe5 {[%clk 0:02:00.1]} 21.
Bf4 {[%clk 0:01:02.4]} 21... Qc5+ {[%clk 0:01:51.4]} 22. Be3 {[%clk 0:01:00.1]}
22... Qb4 {[%clk 0:01:51.5]} 23. Bd4 {[%clk 0:00:55.9]} 23... c6 {[%clk
0:01:06.3]} 24. Be3 {[%clk 0:00:46.9]} 24... Rbd8 {[%clk 0:00:57.5]} 25. Nb1
{[%clk 0:00:30.7]} 25... Qxd2 {[%clk 0:00:57]} 26. Nxd2 {[%clk 0:00:31.6]} 26...
d5 {[%clk 0:00:57.6]} 27. Bg5 {[%clk 0:00:27.4]} 27... dxe4 {[%clk 0:00:55.3]}
28. Bxf6 {[%clk 0:00:22.6]} 28... Bxf6 {[%clk 0:00:56.2]} 29. Nxe4 {[%clk
0:00:22.6]} 29... Be7 {[%clk 0:00:50]} 30. Kf1 {[%clk 0:00:20.6]} 30... Kg7
{[%clk 0:00:48.1]} 31. Nd6 {[%clk 0:00:18.8]} 31... Bxd6 {[%clk 0:00:38.7]} 32.
Rxe8 {[%clk 0:00:19.3]} 32... Rxe8 {[%clk 0:00:39.1]} 33. Rxd6 {[%clk
0:00:19.5]} 33... Re6 {[%clk 0:00:29.6]} 34. Rxe6 {[%clk 0:00:19.4]} 34... fxe6
{[%clk 0:00:30.5]} 35. Ke2 {[%clk 0:00:19.2]} 35... Kf6 {[%clk 0:00:31]} 36. Ke3
{[%clk 0:00:19.6]} 36... Ke5 {[%clk 0:00:31.6]} 37. b4 {[%clk 0:00:18.6]} 37...
Kd5 {[%clk 0:00:31.7]} 38. Kd3 {[%clk 0:00:18.8]} 38... g5 {[%clk 0:00:31.3]}
39. c3 {[%clk 0:00:17.9]} 39... h5 {[%clk 0:00:25.1]} 40. g3 {[%clk 0:00:16.4]}
40... Ke5 {[%clk 0:00:05.7]} 41. c4 {[%clk 0:00:15]} 41... h4 {[%clk 0:00:03.2]}
42. cxb5 {[%clk 0:00:08.4]} 42... cxb5 {[%clk 0:00:04.1]} 43. Ke3 {[%clk
0:00:07.8]} 43... hxg3 {[%clk 0:00:04]} 44. hxg3 {[%clk 0:00:08.7]} 44... Kd5
{[%clk 0:00:04.1]} 45. Kd3 {[%clk 0:00:09.2]} 45... e5 {[%clk 0:00:03.9]} 46. g4
{[%clk 0:00:09.2]} 46... Kd6 {[%clk 0:00:02.9]} 47. Ke4 {[%clk 0:00:09.4]} 47...
Ke6 {[%clk 0:00:03.5]} 48. Ke3 {[%clk 0:00:09.8]} 48... Kd5 {[%clk 0:00:03.3]}
49. Kd3 {[%clk 0:00:10.1]} 49... Kd6 {[%clk 0:00:03.9]} 50. Ke4 {[%clk
0:00:10.6]} 50... Ke6 {[%clk 0:00:04.6]} 51. Ke3 {[%clk 0:00:10.8]} 51... Kd5
{[%clk 0:00:04.7]} 52. Kd3 {[%clk 0:00:11]} 1/2-1/2

[Event "Early-Titled-Tuesday-Blitz-October-24-2023"]
[Site "Chess.com"]
[Date "2023.10.24"]
[Round "2"]
[White "Maect19"]
[Black "Malev212"]
[Result "1-0"]
[WhiteElo "2282"]
[BlackElo "2636"]
[TimeControl "180+1"]
[EndTime "8:17:47 PDT"]
[Termination "Maect19 won by resignation"]

1. d4 {[%clk 0:03:00.9]} 1... Nf6 {[%clk 0:02:55.4]} 2. Nf3 {[%clk 0:03:00.5]}
2... g6 {[%clk 0:02:55.4]} 3. c3 {[%clk 0:02:58.5]} 3... Bg7 {[%clk 0:02:52.5]}
4. Bf4 {[%clk 0:02:54.6]} 4... d6 {[%clk 0:02:50.2]} 5. Nbd2 {[%clk 0:02:54.1]}
5... O-O {[%clk 0:02:50.8]} 6. e4 {[%clk 0:02:53.7]} 6... c5 {[%clk 0:02:48.2]}
7. Bc4 {[%clk 0:02:50.9]} 7... Nc6 {[%clk 0:02:42.6]} 8. O-O {[%clk 0:02:46.4]}
8... Bg4 {[%clk 0:02:33.5]} 9. e5 {[%clk 0:02:33.6]} 9... dxe5 {[%clk
0:02:23.8]} 10. dxe5 {[%clk 0:02:32.3]} 10... Nd5 {[%clk 0:02:19.4]} 11. Bxd5
{[%clk 0:02:15.3]} 11... Qxd5 {[%clk 0:02:17.9]} 12. h3 {[%clk 0:02:09]} 12...
Bf5 {[%clk 0:02:13.8]} 13. Re1 {[%clk 0:02:04.1]} 13... Rfd8 {[%clk 0:02:06.6]}
14. Qb3 {[%clk 0:02:01.2]} 14... Qxb3 {[%clk 0:01:58.5]} 15. Nxb3 {[%clk
0:01:48.2]} 15... b6 {[%clk 0:01:58]} 16. Rad1 {[%clk 0:01:42.3]} 16... a5
{[%clk 0:01:44]} 17. g4 {[%clk 0:01:22]} 17... Be6 {[%clk 0:01:35]} 18. Rxd8+
{[%clk 0:01:09.6]} 18... Rxd8 {[%clk 0:01:33.9]} 19. Ng5 {[%clk 0:01:10.2]}
19... Bc4 {[%clk 0:01:29.9]} 20. e6 {[%clk 0:01:06.3]} 20... f6 {[%clk
0:01:20.8]} 21. Nf3 {[%clk 0:00:55.4]} 21... Rd3 {[%clk 0:01:06.7]} 22. Re3
{[%clk 0:00:38.3]} 22... Rxe3 {[%clk 0:01:04]} 23. fxe3 {[%clk 0:00:34.8]} 23...
Bxe6 {[%clk 0:01:02.7]} 24. Bc7 {[%clk 0:00:34.5]} 24... a4 {[%clk 0:00:58]} 25.
Nbd2 {[%clk 0:00:25.2]} 25... b5 {[%clk 0:00:50.2]} 26. Bb6 {[%clk 0:00:23.8]}
26... Bxa2 {[%clk 0:00:38.9]} 27. Bxc5 {[%clk 0:00:22.5]} 27... e5 {[%clk
0:00:38.9]} 28. Ne4 {[%clk 0:00:18.9]} 28... Bd5 {[%clk 0:00:35.8]} 29. Nfd2
{[%clk 0:00:18]} 29... Nb8 {[%clk 0:00:17.8]} 30. Nd6 {[%clk 0:00:17.7]} 30...
Nd7 {[%clk 0:00:18.4]} 31. Bb4 {[%clk 0:00:16.9]} 31... Bc6 {[%clk 0:00:17.1]}
32. Kf2 {[%clk 0:00:15.2]} 32... Bf8 {[%clk 0:00:16.7]} 33. N2e4 {[%clk
0:00:12.3]} 33... Bxe4 {[%clk 0:00:13.3]} 34. Nxe4 {[%clk 0:00:13.2]} 34... Bxb4
{[%clk 0:00:13]} 35. cxb4 {[%clk 0:00:14.1]} 35... Kg7 {[%clk 0:00:10.1]} 36.
Nc3 {[%clk 0:00:14]} 36... Nb6 {[%clk 0:00:09.5]} 37. Nxb5 {[%clk 0:00:14.1]}
37... Nd5 {[%clk 0:00:09.3]} 38. Nc3 {[%clk 0:00:14.7]} 38... Nxb4 {[%clk
0:00:08.9]} 39. Ke2 {[%clk 0:00:13.5]} 39... f5 {[%clk 0:00:09.8]} 40. Nxa4
{[%clk 0:00:13]} 40... Kf6 {[%clk 0:00:09.1]} 41. gxf5 {[%clk 0:00:12.5]} 41...
gxf5 {[%clk 0:00:09]} 42. Nc3 {[%clk 0:00:13.1]} 42... Kg5 {[%clk 0:00:09]} 43.
Kf3 {[%clk 0:00:12.7]} 43... e4+ {[%clk 0:00:08.6]} 44. Kg3 {[%clk 0:00:12.5]}
44... Nd3 {[%clk 0:00:09.5]} 45. b3 {[%clk 0:00:11.9]} 45... h5 {[%clk
0:00:08.7]} 46. Nd5 {[%clk 0:00:11.4]} 46... h4+ {[%clk 0:00:08.3]} 47. Kg2
{[%clk 0:00:10.9]} 47... Ne5 {[%clk 0:00:08.2]} 48. b4 {[%clk 0:00:10.3]} 48...
Nc4 {[%clk 0:00:08.2]} 49. Kf2 {[%clk 0:00:10.4]} 49... Kg6 {[%clk 0:00:08.3]}
50. Nf4+ {[%clk 0:00:10.5]} 50... Kf6 {[%clk 0:00:08.1]} 51. Ng2 {[%clk
0:00:11.1]} 51... Ke5 {[%clk 0:00:07.1]} 52. Nxh4 {[%clk 0:00:11]} 52... f4
{[%clk 0:00:08]} 53. exf4+ {[%clk 0:00:08.6]} 53... Kxf4 {[%clk 0:00:08.9]} 54.
Ng2+ {[%clk 0:00:08.4]} 54... Kf5 {[%clk 0:00:08.4]} 55. h4 {[%clk 0:00:08.9]}
55... Kg4 {[%clk 0:00:08.5]} 56. Ne3+ {[%clk 0:00:09]} 56... Nxe3 {[%clk
0:00:07.6]} 57. Kxe3 {[%clk 0:00:09.9]} 57... Kxh4 {[%clk 0:00:08]} 58. b5
{[%clk 0:00:08.8]} 58... Kg5 {[%clk 0:00:08.9]} 59. b6 {[%clk 0:00:09.2]} 59...
Kf5 {[%clk 0:00:09.6]} 60. b7 {[%clk 0:00:09.8]} 1-0

[Event "Early-Titled-Tuesday-Blitz-October-24-2023"]
[Site "Chess.com"]
[Date "2023.10.24"]
[Round "2"]
[White "kingapolak"]
[Black "topin8"]
[Result "0-1"]
[WhiteElo "2131"]
[BlackElo "2440"]
[TimeControl "180+1"]
[EndTime "8:17:47 PDT"]
[Termination "topin8 won on time"]

1. e4 {[%clk 0:03:00.9]} 1... e5 {[%clk 0:02:59.8]} 2. Nf3 {[%clk 0:03:00.6]}
2... Nc6 {[%clk 0:03:00.3]} 3. Bc4 {[%clk 0:03:00.2]} 3... Nf6 {[%clk
0:03:00.7]} 4. d3 {[%clk 0:02:54.7]} 4... Be7 {[%clk 0:03:00.2]} 5. O-O {[%clk
0:02:53.6]} 5... O-O {[%clk 0:03:00.6]} 6. c3 {[%clk 0:02:51.9]} 6... d6 {[%clk
0:02:59.5]} 7. h3 {[%clk 0:02:49.6]} 7... Kh8 {[%clk 0:02:59.7]} 8. a4 {[%clk
0:02:48.3]} 8... Ng8 {[%clk 0:02:59.9]} 9. Nbd2 {[%clk 0:02:37.7]} 9... f5
{[%clk 0:02:59.9]} 10. exf5 {[%clk 0:02:36.2]} 10... Bxf5 {[%clk 0:02:59.8]} 11.
Re1 {[%clk 0:02:30.5]} 11... Qe8 {[%clk 0:02:55.6]} 12. Nf1 {[%clk 0:02:29.9]}
12... Qg6 {[%clk 0:02:38.1]} 13. Ng3 {[%clk 0:02:17.2]} 13... Bd7 {[%clk
0:02:37.6]} 14. b4 {[%clk 0:02:14.1]} 14... a6 {[%clk 0:02:36.1]} 15. Be3 {[%clk
0:02:04.7]} 15... Nh6 {[%clk 0:02:35.5]} 16. b5 {[%clk 0:02:04]} 16... axb5
{[%clk 0:02:22.9]} 17. axb5 {[%clk 0:02:04.9]} 17... Rxa1 {[%clk 0:02:23.5]} 18.
Qxa1 {[%clk 0:02:03.6]} 18... Nd8 {[%clk 0:02:24.1]} 19. Bxh6 {[%clk 0:02:02.7]}
19... Qxh6 {[%clk 0:02:22.5]} 20. Qd1 {[%clk 0:01:40.6]} 20... Bf6 {[%clk
0:01:49.7]} 21. Ne4 {[%clk 0:01:34]} 21... Ne6 {[%clk 0:01:45.6]} 22. Bxe6
{[%clk 0:01:28.1]} 22... Bxe6 {[%clk 0:01:45]} 23. Nxf6 {[%clk 0:01:23.2]} 23...
Qxf6 {[%clk 0:01:43.3]} 24. Qe2 {[%clk 0:01:17.8]} 24... Bxh3 {[%clk 0:01:39.9]}
25. d4 {[%clk 0:01:13]} 25... Bg4 {[%clk 0:00:48]} 26. dxe5 {[%clk 0:01:12.2]}
26... Qg6 {[%clk 0:00:24.5]} 27. Kf1 {[%clk 0:00:22.4]} 27... Qh5 {[%clk
0:00:16.9]} 28. Kg1 {[%clk 0:00:16.1]} 28... Rxf3 {[%clk 0:00:08.3]} 29. exd6
{[%clk 0:00:13.1]} 29... Rf8 {[%clk 0:00:04.6]} 30. Qe7 {[%clk 0:00:11.8]} 30...
Rg8 {[%clk 0:00:02.4]} 31. dxc7 {[%clk 0:00:10.7]} 31... Qxb5 {[%clk 0:00:02.2]}
32. Qd8 {[%clk 0:00:07.9]} 32... Bc8 {[%clk 0:00:02.6]} 33. Rd1 {[%clk
0:00:04.2]} 33... Qc6 {[%clk 0:00:02.6]} 34. Qxg8+ {[%clk 0:00:03.7]} 34... Kxg8
{[%clk 0:00:03.5]} 35. Rd8+ {[%clk 0:00:03.8]} 35... Kf7 {[%clk 0:00:04]} 36.
Rxc8 {[%clk 0:00:04.7]} 36... Qd7 {[%clk 0:00:03.7]} 37. Rd8 {[%clk 0:00:03.2]}
37... Qxc7 {[%clk 0:00:03.9]} 38. Rd3 {[%clk 0:00:02.5]} 38... Qc4 {[%clk
0:00:03.6]} 39. Rf3+ {[%clk 0:00:01.7]} 39... Ke6 {[%clk 0:00:04.2]} 40. Kh2
{[%clk 0:00:02]} 40... b5 {[%clk 0:00:04.4]} 41. Kg1 {[%clk 0:00:02.1]} 41...
Qb3 {[%clk 0:00:04.4]} 42. Kh2 {[%clk 0:00:01.9]} 42... Qd5 {[%clk 0:00:04.9]}
43. Kg1 {[%clk 0:00:02.4]} 43... g5 {[%clk 0:00:05.3]} 44. Kh2 {[%clk
0:00:02.9]} 44... g4 {[%clk 0:00:05.8]} 45. Re3+ {[%clk 0:00:03.1]} 45... Kd6
{[%clk 0:00:06.3]} 46. Kg1 {[%clk 0:00:03.5]} 46... h5 {[%clk 0:00:06.8]} 47.
Kh2 {[%clk 0:00:03.9]} 47... h4 {[%clk 0:00:07.3]} 48. Kg1 {[%clk 0:00:04]}
48... Kc5 {[%clk 0:00:07.8]} 49. Kh2 {[%clk 0:00:04]} 49... Kc4 {[%clk
0:00:08.4]} 50. Kg1 {[%clk 0:00:03.8]} 50... Kb3 {[%clk 0:00:08.9]} 51. Kh2
{[%clk 0:00:02]} 51... Kc2 {[%clk 0:00:09.2]} 52. Kg1 {[%clk 0:00:02]} 52...
Qd1+ {[%clk 0:00:09.7]} 53. Kh2 {[%clk 0:00:02.1]} 53... Qd6+ {[%clk 0:00:10.2]}
54. Kg1 {[%clk 0:00:02.3]} 54... Kd2 {[%clk 0:00:10.3]} 55. Kh1 {[%clk
0:00:01.4]} 55... g3 {[%clk 0:00:09.6]} 0-1

[Event "Early-Titled-Tuesday-Blitz-October-24-2023"]
[Site "Chess.com"]
[Date "2023.10.24"]
[Round "2"]
[White "Ducke13"]
[Black "Malikova777"]
[Result "1-0"]
[WhiteElo "2469"]
[BlackElo "2206"]
[TimeControl "180+1"]
[EndTime "8:17:49 PDT"]
[Termination "Ducke13 won by resignation"]

1. d4 {[%clk 0:02:56.5]} 1... Nf6 {[%clk 0:02:59.5]} 2. g3 {[%clk 0:02:57]} 2...
e6 {[%clk 0:02:59.5]} 3. c4 {[%clk 0:02:56.4]} 3... d5 {[%clk 0:03:00]} 4. Nf3
{[%clk 0:02:56.7]} 4... dxc4 {[%clk 0:03:00]} 5. Bg2 {[%clk 0:02:56.9]} 5...
Bb4+ {[%clk 0:02:58.1]} 6. Nbd2 {[%clk 0:02:56.4]} 6... a5 {[%clk 0:02:58.2]} 7.
O-O {[%clk 0:02:54.8]} 7... b5 {[%clk 0:02:55.9]} 8. a4 {[%clk 0:02:52.2]} 8...
c6 {[%clk 0:02:54.9]} 9. Ne5 {[%clk 0:02:47.8]} 9... Ra6 {[%clk 0:02:52]} 10. b3
{[%clk 0:02:37.5]} 10... Qxd4 {[%clk 0:02:42.5]} 11. Nxc6 {[%clk 0:02:12.4]}
11... Nxc6 {[%clk 0:02:37.7]} 12. axb5 {[%clk 0:02:12.6]} 12... Qxa1 {[%clk
0:02:33.3]} 13. bxa6 {[%clk 0:02:10.7]} 13... Na7 {[%clk 0:02:25.2]} 14. Nxc4
{[%clk 0:02:05.2]} 14... O-O {[%clk 0:02:23.1]} 15. Be3 {[%clk 0:02:01.8]} 15...
Qxd1 {[%clk 0:01:39.4]} 16. Rxd1 {[%clk 0:02:02.7]} 16... Bxa6 {[%clk
0:01:35.3]} 17. Bxa7 {[%clk 0:02:02.2]} 17... h6 {[%clk 0:01:19.7]} 18. Ra1
{[%clk 0:01:56.3]} 18... Bxc4 {[%clk 0:01:15.6]} 19. bxc4 {[%clk 0:01:56.1]}
19... Rc8 {[%clk 0:01:16.2]} 20. Bb6 {[%clk 0:01:44.4]} 20... Rxc4 {[%clk
0:01:00.8]} 21. Bxa5 {[%clk 0:01:44.6]} 21... Bxa5 {[%clk 0:01:01]} 22. Rxa5
{[%clk 0:01:45.5]} 22... Rc1+ {[%clk 0:01:01.3]} 23. Bf1 {[%clk 0:01:46.1]}
23... Nd5 {[%clk 0:00:59.7]} 24. Kg2 {[%clk 0:01:42.8]} 24... Kh7 {[%clk
0:00:59.3]} 25. e3 {[%clk 0:01:39.7]} 25... Rd1 {[%clk 0:00:57.9]} 26. Ra3
{[%clk 0:01:29]} 26... Rd2 {[%clk 0:00:56.7]} 27. Bd3+ {[%clk 0:01:26]} 27... g6
{[%clk 0:00:57.1]} 28. Be4 {[%clk 0:01:25.9]} 28... Kg7 {[%clk 0:00:55.4]} 29.
h4 {[%clk 0:01:24.7]} 29... Nf6 {[%clk 0:00:54.7]} 30. Bf3 {[%clk 0:01:24.1]}
30... h5 {[%clk 0:00:53.2]} 31. Kf1 {[%clk 0:01:21.8]} 31... Rb2 {[%clk
0:00:52.6]} 32. Bc6 {[%clk 0:01:16.6]} 32... Rc2 {[%clk 0:00:49.2]} 33. Bf3
{[%clk 0:01:15.9]} 33... Rb2 {[%clk 0:00:49.1]} 34. Ra7 {[%clk 0:01:11.7]} 34...
Rb1+ {[%clk 0:00:48.4]} 35. Kg2 {[%clk 0:01:09.1]} 35... Rb2 {[%clk 0:00:48.8]}
36. Rb7 {[%clk 0:01:06]} 36... Rxb7 {[%clk 0:00:47.5]} 37. Bxb7 {[%clk
0:01:06.9]} 37... Ng4 {[%clk 0:00:47.2]} 38. Kf3 {[%clk 0:01:01.7]} 38... Ne5+
{[%clk 0:00:47.1]} 39. Ke4 {[%clk 0:00:58]} 39... Ng4 {[%clk 0:00:47.1]} 40. f3
{[%clk 0:00:49.5]} 40... Nf2+ {[%clk 0:00:47.2]} 41. Kd4 {[%clk 0:00:48.4]}
41... Nh1 {[%clk 0:00:46.8]} 42. g4 {[%clk 0:00:43.5]} 42... hxg4 {[%clk
0:00:46.7]} 43. fxg4 {[%clk 0:00:44.4]} 43... Nf2 {[%clk 0:00:46.7]} 44. Bf3
{[%clk 0:00:40.8]} 44... f5 {[%clk 0:00:45.8]} 45. g5 {[%clk 0:00:39.2]} 45...
Kf7 {[%clk 0:00:35]} 46. Kc3 {[%clk 0:00:36.1]} 46... e5 {[%clk 0:00:31]} 47.
Kd2 {[%clk 0:00:33.8]} 47... e4 {[%clk 0:00:30.5]} 48. Be2 {[%clk 0:00:34.3]}
48... Nh3 {[%clk 0:00:24.4]} 49. Ke1 {[%clk 0:00:30.1]} 49... Ng1 {[%clk
0:00:19.9]} 50. Bd1 {[%clk 0:00:27.7]} 50... Ke6 {[%clk 0:00:15]} 51. Kf2 {[%clk
0:00:28]} 51... Nf3 {[%clk 0:00:13.3]} 52. Bxf3 {[%clk 0:00:27.6]} 52... exf3
{[%clk 0:00:14.2]} 53. Kxf3 {[%clk 0:00:28.5]} 53... Ke5 {[%clk 0:00:14.3]} 54.
Kf2 {[%clk 0:00:26.4]} 54... Ke6 {[%clk 0:00:14.5]} 55. Ke2 {[%clk 0:00:26]}
55... Ke5 {[%clk 0:00:15.2]} 56. Kf3 {[%clk 0:00:26.2]} 56... Ke6 {[%clk
0:00:15.2]} 57. Kf4 {[%clk 0:00:26.7]} 57... Kd5 {[%clk 0:00:13.3]} 58. h5
{[%clk 0:00:26.4]} 58... gxh5 {[%clk 0:00:14]} 59. Kxf5 {[%clk 0:00:25.4]} 59...
h4 {[%clk 0:00:14.3]} 60. e4+ {[%clk 0:00:25.5]} 60... Kd4 {[%clk 0:00:14]} 61.
Kg4 {[%clk 0:00:22.4]} 61... Ke5 {[%clk 0:00:14.5]} 62. Kxh4 {[%clk 0:00:22.2]}
62... Ke6 {[%clk 0:00:15.4]} 63. Kh5 {[%clk 0:00:22]} 63... Kf7 {[%clk
0:00:16.3]} 64. Kh6 {[%clk 0:00:22.5]} 64... Kg8 {[%clk 0:00:16.5]} 65. Kg6
{[%clk 0:00:22.7]} 65... Kf8 {[%clk 0:00:16.8]} 66. Kh7 {[%clk 0:00:22.8]} 66...
Kf7 {[%clk 0:00:17]} 67. g6+ {[%clk 0:00:23.5]} 67... Ke6 {[%clk 0:00:17.9]} 68.
g7 {[%clk 0:00:23.9]} 68... Ke7 {[%clk 0:00:18.8]} 1-0

[Event "Early-Titled-Tuesday-Blitz-October-24-2023"]
[Site "Chess.com"]
[Date "2023.10.24"]
[Round "2"]
[White "jk13"]
[Black "abc_xyz4744"]
[Result "1-0"]
[WhiteElo "2690"]
[BlackElo "2375"]
[TimeControl "180+1"]
[EndTime "8:17:54 PDT"]
[Termination "jk13 won on time"]

1. e4 {[%clk 0:03:00.9]} 1... c5 {[%clk 0:02:55.7]} 2. c3 {[%clk 0:03:00.5]}
2... d5 {[%clk 0:02:55.1]} 3. exd5 {[%clk 0:03:01]} 3... Qxd5 {[%clk 0:02:56]}
4. d4 {[%clk 0:03:01.6]} 4... cxd4 {[%clk 0:02:56.5]} 5. Nf3 {[%clk 0:03:02.4]}
5... Nc6 {[%clk 0:02:56.5]} 6. cxd4 {[%clk 0:03:03]} 6... e5 {[%clk 0:02:56.9]}
7. Nc3 {[%clk 0:03:03.9]} 7... Bb4 {[%clk 0:02:57.1]} 8. Bd2 {[%clk 0:03:04.2]}
8... Bxc3 {[%clk 0:02:57.8]} 9. Bxc3 {[%clk 0:03:05.1]} 9... e4 {[%clk
0:02:58.5]} 10. Ne5 {[%clk 0:03:05.3]} 10... Nxe5 {[%clk 0:02:59.1]} 11. dxe5
{[%clk 0:03:06.2]} 11... Ne7 {[%clk 0:02:59.9]} 12. Qe2 {[%clk 0:03:04.2]} 12...
O-O {[%clk 0:02:52.5]} 13. Rd1 {[%clk 0:03:03.3]} 13... Qc6 {[%clk 0:02:50.3]}
14. Rd6 {[%clk 0:03:01]} 14... Qa4 {[%clk 0:02:45.9]} 15. Qc4 {[%clk 0:02:59.6]}
15... Bd7 {[%clk 0:02:35.6]} 16. Qxa4 {[%clk 0:02:45.8]} 16... Bxa4 {[%clk
0:02:36.5]} 17. Be2 {[%clk 0:02:34.7]} 17... Rfe8 {[%clk 0:02:32.9]} 18. e6
{[%clk 0:02:22.4]} 18... f6 {[%clk 0:02:23.1]} 19. Bc4 {[%clk 0:02:09.3]} 19...
Rac8 {[%clk 0:02:16.5]} 20. Rd4 {[%clk 0:02:09.1]} 20... Nf5 {[%clk 0:02:12.2]}
21. Rd5 {[%clk 0:01:38.1]} 21... Rxc4 {[%clk 0:01:56.7]} 22. Rxf5 {[%clk
0:01:38]} 22... Rxe6 {[%clk 0:01:57.2]} 23. Kd2 {[%clk 0:01:34.5]} 23... Rd6+
{[%clk 0:01:46]} 24. Kc1 {[%clk 0:01:34.6]} 24... Rc8 {[%clk 0:01:38.8]} 25. Ra5
{[%clk 0:01:31.7]} 25... Bc6 {[%clk 0:01:12.5]} 26. Rxa7 {[%clk 0:01:31.8]}
26... e3 {[%clk 0:01:11.9]} 27. fxe3 {[%clk 0:01:23.8]} 27... Bxg2 {[%clk
0:01:11.3]} 28. Rg1 {[%clk 0:01:19.4]} 28... Be4 {[%clk 0:01:09.3]} 29. Rg4
{[%clk 0:01:12.4]} 29... Rc4 {[%clk 0:00:51.7]} 30. a3 {[%clk 0:00:51]} 30...
Rd7 {[%clk 0:00:21.9]} 31. Ra5 {[%clk 0:00:34.5]} 31... Kf7 {[%clk 0:00:17.9]}
32. Rb5 {[%clk 0:00:28.6]} 32... g6 {[%clk 0:00:16.5]} 33. Rb6 {[%clk
0:00:21.8]} 33... f5 {[%clk 0:00:16.6]} 34. Rg2 {[%clk 0:00:20.4]} 34... Rc5
{[%clk 0:00:15.4]} 35. Rd2 {[%clk 0:00:18.6]} 35... Rxd2 {[%clk 0:00:15.5]} 36.
Kxd2 {[%clk 0:00:19.2]} 36... Rd5+ {[%clk 0:00:16.3]} 37. Ke2 {[%clk 0:00:19.3]}
37... Rd3 {[%clk 0:00:15.9]} 38. Bd4 {[%clk 0:00:17]} 38... f4 {[%clk
0:00:13.7]} 39. Rb4 {[%clk 0:00:10.4]} 39... f3+ {[%clk 0:00:13.8]} 40. Ke1
{[%clk 0:00:10.4]} 40... Ke6 {[%clk 0:00:12.2]} 41. a4 {[%clk 0:00:10.2]} 41...
Kf5 {[%clk 0:00:12.2]} 42. h3 {[%clk 0:00:09.8]} 42... Kg5 {[%clk 0:00:09.4]}
43. Bc3 {[%clk 0:00:07.9]} 43... Bc6 {[%clk 0:00:08]} 44. Kf2 {[%clk 0:00:07.1]}
44... Rd6 {[%clk 0:00:06.8]} 45. e4 {[%clk 0:00:07.6]} 45... Re6 {[%clk
0:00:07.1]} 46. Kxf3 {[%clk 0:00:08.1]} 46... h5 {[%clk 0:00:07.1]} 47. Ke3
{[%clk 0:00:07.7]} 47... Re7 {[%clk 0:00:08]} 48. Kf3 {[%clk 0:00:08.1]} 48...
Kh4 {[%clk 0:00:08.8]} 49. Kf4 {[%clk 0:00:08.4]} 49... Kxh3 {[%clk 0:00:08.9]}
50. Bf6 {[%clk 0:00:08.8]} 50... Rf7 {[%clk 0:00:08.6]} 51. e5 {[%clk
0:00:09.7]} 51... Bd7 {[%clk 0:00:08.4]} 52. Kg5 {[%clk 0:00:10.6]} 52... Bf5
{[%clk 0:00:08.2]} 53. b3 {[%clk 0:00:09.6]} 53... Kg3 {[%clk 0:00:08.4]} 54.
Rd4 {[%clk 0:00:09.4]} 54... Rh7 {[%clk 0:00:08.8]} 55. Rh4 {[%clk 0:00:07.9]}
55... Rc7 {[%clk 0:00:08.2]} 56. Rc4 {[%clk 0:00:07.9]} 56... Rc5 {[%clk
0:00:08.3]} 57. Rxc5 {[%clk 0:00:07.9]} 1-0